bitfinex-derivatives/quotes_BNBF0:USTF0_20250130
["timestamp","ask_amount","ask_price","bid_price","bid_amount"]
[1738221857243,0.27179001,676.83,675.72,0.29598058]
[1738221858638,0.27178505,676.82,675.72,0.29598058]
[1738221858835,0.29549081,676.84,675.72,0.29598058]
[1738221858836,0.27178505,676.81,675.72,0.29598058]
[1738221859041,0.27178505,676.8,675.72,0.29598058]
[1738221859237,0.27178505,676.79,675.72,0.29598058]
[1738221859443,0.27178505,676.78,675.72,0.29598058]
[1738221859742,0.29549081,676.84,675.72,0.29598058]
[1738221859943,0.27178954,676.83,675.72,0.29598058]
[1738221860745,0.27178478,676.82,675.72,0.29598058]
[1738221861041,0.27178478,676.81,675.72,0.29598058]
[1738221861243,0.27178478,676.8,675.72,0.29598058]
[1738221861543,1.10119029,676.75,675.72,0.29598058]
[1738221861743,0.27178478,676.74,675.72,0.29598058]
[1738221861938,1.10119029,676.75,675.72,0.29598058]
[1738221862139,0.27178698,676.74,675.72,0.29598058]
[1738221863644,1.10119029,676.75,675.72,0.29598058]
[1738221864845,1.10119029,676.73,675.72,0.29598058]
[1738221865442,0.27178389,676.72,675.72,0.29598058]
[1738221867449,1.37297418,676.72,675.72,0.29598058]
[1738221867648,0.27178389,676.71,675.72,0.29598058]
[1738221868443,1.10119029,676.72,675.72,0.29598058]
[1738221868647,0.27180171,676.71,675.72,0.29598058]
[1738221870446,1.10119029,676.63,675.72,0.29598058]
[1738221871153,0.27180464,676.62,675.72,0.29598058]
[1738221871645,1.10119029,676.63,675.72,0.29598058]
[1738221871846,0.27180448,676.62,675.72,0.29598058]
[1738221873254,1.10119029,676.57,675.72,0.29598058]
[1738221873447,0.27181143,676.56,675.72,0.29598058]
[1738221876052,1.10119029,676.49,675.72,0.29598058]
[1738221876247,0.27181143,676.48,675.72,0.29598058]
[1738221877246,1.10119029,676.49,675.72,0.29598058]
[1738221878450,1.10119029,676.45,675.72,0.29598058]
[1738221880958,1.10119029,676.7,675.72,0.29598058]
[1738221884654,1.10119029,676.66,675.72,0.29598058]
[1738221887661,1.10119029,676.77,675.72,0.29598058]
[1738221890756,1.10119029,676.81,675.72,0.29598058]
[1738221893966,1.10119029,676.89,675.72,0.29598058]
[1738221896369,1.10119029,676.9,675.72,0.29598058]
[1738221899574,1.10119029,677.01,675.72,0.29598058]
[1738221902478,1.10119029,677.07,675.72,0.29598058]
[1738221906180,1.10119029,677.18,675.72,0.29598058]
[1738221909484,1.10119029,677.31,675.72,0.29598058]
[1738221912485,1.10119029,677.37,675.72,0.29598058]
[1738221915681,1.10119029,677.36,675.72,0.29598058]
[1738221916784,0.56695358,677.35,675.72,0.29598058]
[1738221916985,0.56695794,677.34,675.72,0.29598058]
[1738221917286,0.5669623,677.33,675.72,0.29598058]
[1738221917480,0.27168526,677.32,675.72,0.29598058]
[1738221917682,0.29528576,677.31,675.72,0.29598058]
[1738221917885,0.27168526,677.3,675.72,0.29598058]
[1738221918082,1.10119029,677.27,675.72,0.29598058]
[1738221918385,0.56699282,677.26,675.72,0.29598058]
[1738221918586,0.56699718,677.25,675.72,0.29598058]
[1738221918787,0.56700154,677.24,675.72,0.29598058]
[1738221918985,0.5670059,677.23,675.72,0.29598058]
[1738221919186,0.27168526,677.22,675.72,0.29598058]
[1738221920186,0.56701026,677.22,675.72,0.29598058]
[1738221920388,0.56701462,677.21,675.72,0.29598058]
[1738221920781,0.27168526,677.2,675.72,0.29598058]
[1738221921189,1.10119029,677.09,675.72,0.29598058]
[1738221921390,0.27168526,677.08,675.72,0.29598058]
[1738221924591,1.10119029,677.09,675.72,0.29598058]
[1738221924891,0.29532936,677.21,675.72,0.29598058]
[1738221924892,1.10119029,676.97,675.72,0.29598058]
[1738221925092,0.27172058,676.96,675.72,0.29598058]
[1738221927590,1.10119029,676.84,675.72,0.29598058]
[1738221927797,0.27172058,676.83,675.72,0.29598058]
[1738221930303,1.10119029,676.73,675.72,0.29598058]
[1738221930496,0.27172058,676.72,675.72,0.29598058]
[1738221931101,1.10119029,676.73,675.72,0.29598058]
[1738221931298,0.27177076,676.72,675.72,0.29598058]
[1738221932500,0.27177076,676.71,675.72,0.29598058]
[1738221932705,0.27177076,676.74,675.72,0.29598058]
[1738221932905,0.27177076,676.73,675.72,0.29598058]
[1738221933106,0.27177076,676.74,675.72,0.29598058]
[1738221933306,0.27177076,676.73,675.72,0.29598058]
[1738221933608,0.27177076,676.72,675.72,0.29598058]
[1738221933800,0.27177076,676.74,675.72,0.29598058]
[1738221934004,0.27177076,676.73,675.72,0.29598058]
[1738221934197,0.27177076,676.72,675.72,0.29598058]
[1738221934403,0.27177076,676.71,675.72,0.29598058]
[1738221934605,1.10119029,676.75,675.72,0.29598058]
[1738221934806,0.27177003,676.74,675.72,0.29598058]
[1738221935904,0.27177003,676.73,675.72,0.29598058]
[1738221936109,0.27177003,676.75,675.72,0.29598058]
[1738221936410,0.27177003,676.74,675.72,0.29598058]
[1738221936710,0.27177003,676.73,675.72,0.29598058]
[1738221936905,0.27177003,676.72,675.72,0.29598058]
[1738221937107,0.27177003,676.71,675.72,0.29598058]
[1738221937403,1.10119029,676.76,675.72,0.29598058]
[1738221937609,0.27176965,676.75,675.72,0.29598058]
[1738221938003,1.10119029,676.76,675.72,0.29598058]
[1738221938605,0.27177009,676.75,675.72,0.29598058]
[1738221939409,0.27177009,676.74,675.72,0.29598058]
[1738221939711,1.10119029,676.8,675.72,0.29598058]
[1738221940011,0.27176616,676.79,675.72,0.29598058]
[1738221940409,1.10119029,676.8,675.72,0.29598058]
[1738221940605,0.27176474,676.79,675.72,0.29598058]
[1738221941312,1.10119029,676.8,675.72,0.29598058]
[1738221941607,0.27176474,676.79,675.72,0.29598058]
[1738221942211,1.10119029,676.76,675.72,0.29598058]
[1738221942409,0.27176474,676.75,675.72,0.29598058]
[1738221943010,1.10119029,676.76,675.72,0.29598058]
[1738221943211,0.27176403,676.75,675.72,0.29598058]
[1738221947215,1.10119029,676.68,675.72,0.29598058]
[1738221947408,0.27176403,676.67,675.72,0.29598058]
[1738221949510,1.10119029,676.68,675.72,0.29598058]
[1738221949715,1.10119029,676.65,675.72,0.29598058]
[1738221949911,0.27175325,676.64,675.72,0.29598058]
[1738221952814,0.27174982,676.63,675.72,0.29598058]
[1738221953014,0.27174982,676.62,675.72,0.29598058]
[1738221953216,1.37294011,676.64,675.72,0.29598058]
[1738221953414,0.27174982,676.63,675.72,0.29598058]
[1738221954016,1.10119029,676.64,675.72,0.29598058]
[1738221956022,0.27174929,676.63,675.72,0.29598058]
[1738221956619,1.10119029,676.59,675.72,0.29598058]
[1738221956816,0.27174929,676.58,675.72,0.29598058]
[1738221958519,1.10119029,676.5,675.72,0.29598058]
[1738221962127,0.56793065,676.9,675.72,0.29598058]
[1738221962128,1.10119029,676.47,675.72,0.29598058]
[1738221964222,1.10119029,676.48,675.72,0.29598058]
[1738221971531,1.10119029,677.14,675.72,0.29598058]
[1738221971828,0.56708338,677.13,675.72,0.29598058]
[1738221972030,0.29536862,677.12,675.72,0.29598058]
[1738221972229,0.27172208,677.11,675.72,0.29598058]
[1738221972429,0.29537734,677.1,675.72,0.29598058]
[1738221974632,1.10119029,677.05,675.72,0.29598058]
[1738221974831,1.39658944,677.05,675.72,0.29598058]
[1738221977234,0.27172101,677.04,675.72,0.29598058]
[1738221979729,0.56712453,677.04,675.72,0.29598058]
[1738221979931,0.27172101,677.03,675.72,0.29598058]
[1738221980235,1.10119029,676.99,675.72,0.29598058]
[1738221980534,0.2717307,676.98,675.72,0.29598058]
[1738221983436,1.10119029,676.99,675.72,0.29598058]
[1738221983636,0.27173069,676.98,675.72,0.29598058]
[1738221984036,1.10119029,676.88,675.72,0.29598058]
[1738221984236,0.27173069,676.87,675.72,0.29598058]
[1738221986541,1.10119029,676.75,675.72,0.29598058]
[1738221986846,0.27173069,676.74,675.72,0.29598058]
[1738221989138,1.10119029,676.71,675.72,0.29598058]
[1738221991851,1.10119029,676.79,675.72,0.29598058]
[1738221992545,0.29540352,677.04,675.72,0.29598058]
[1738221992741,0.27174857,677.03,675.72,0.29598058]
[1738221993143,0.29541224,677.02,675.72,0.29598058]
[1738221993340,0.27174857,677.01,675.72,0.29598058]
[1738221994643,1.1007863,676.81,675.72,0.29598058]
[1738221996248,0.27175061,676.8,675.72,0.29598058]
[1738221996747,1.1007863,676.81,675.72,0.29598058]
[1738221997047,1.1007863,676.8,675.72,0.29598058]
[1738221999144,0.27175415,676.79,675.72,0.29598058]
[1738222000254,1.37254045,676.79,675.72,0.29598058]
[1738222000450,0.27175415,676.78,675.72,0.29598058]
[1738222002151,1.1007863,676.79,675.72,0.29598058]
[1738222004256,1.1007863,676.64,675.72,0.29598058]
[1738222007557,1.1007863,676.99,675.72,0.29598058]
[1738222009158,0.2954297,676.98,675.72,0.29598058]
[1738222012060,0.27176722,676.97,675.72,0.29598058]
[1738222012655,1.37255352,676.97,675.72,0.29598058]
[1738222012858,0.27176722,676.96,675.72,0.29598058]
[1738222013058,0.27176894,676.95,675.72,0.29598058]
[1738222013258,0.27176894,676.94,675.72,0.29598058]
[1738222013459,0.27176894,676.96,675.72,0.29598058]
[1738222013659,0.27176894,676.95,675.72,0.29598058]
[1738222013854,0.27176894,676.96,675.72,0.29598058]
[1738222014058,0.27176894,676.95,675.72,0.29598058]
[1738222014360,0.27176894,676.94,675.72,0.29598058]
[1738222014560,0.27176894,676.96,675.72,0.29598058]
[1738222014761,0.27176894,676.95,675.72,0.29598058]
[1738222015061,0.27176894,676.94,675.72,0.29598058]
[1738222015362,0.27176894,676.93,675.72,0.29598058]
[1738222015561,1.1007863,676.97,675.72,0.29598058]
[1738222015562,0.27176894,676.92,675.72,0.29598058]
[1738222015762,1.1007863,676.77,675.72,0.29598058]
[1738222021665,0.27177084,676.76,675.72,0.29598058]
[1738222022366,1.1007863,676.77,675.72,0.29598058]
[1738222022566,0.27177304,676.76,675.72,0.29598058]
[1738222024673,1.1007863,676.77,675.72,0.29598058]
[1738222025366,1.1007863,676.57,675.72,0.29598058]
[1738222028068,1.1007863,676.7,675.72,0.29598058]
[1738222031867,1.1007863,676.69,675.72,0.29598058]
[1738222038272,1.396216,676.98,675.72,0.29598058]
[1738222038273,1.1007863,676.7,675.72,0.29598058]
[1738222041875,1.1007863,676.71,675.72,0.29598058]
[1738222045177,1.1007863,676.81,675.72,0.29598058]
[1738222045376,1.3962902,676.81,675.72,0.29598058]
[1738222048381,1.1007863,676.77,675.72,0.29598058]
[1738222049883,0.27177568,676.76,675.72,0.29598058]
[1738222050685,0.271774,676.75,675.72,0.29598058]
[1738222050979,0.271774,676.74,675.72,0.29598058]
[1738222051185,0.271774,676.76,675.72,0.29598058]
[1738222051379,0.271774,676.75,675.72,0.29598058]
[1738222051581,0.271774,676.76,675.72,0.29598058]
[1738222051781,0.271774,676.75,675.72,0.29598058]
[1738222051983,0.271774,676.74,675.72,0.29598058]
[1738222052181,1.1007863,676.61,675.72,0.29598058]
[1738222054388,0.27177513,676.6,675.72,0.29598058]
[1738222055087,1.1007863,676.5,675.72,0.29598058]
[1738222059490,1.1007863,676.45,675.72,0.29598058]
[1738222062494,1.1007863,676.47,675.72,0.29598058]
[1738222069095,0.76261089,676.8,675.72,0.29598058]
[1738222069096,1.1007863,676.8,675.72,0.29598058]
[1738222072097,0.2955039,676.81,675.72,0.29598058]
[1738222075693,0.271724,676.8,675.72,0.29598058]
[1738222076593,0.2955039,676.81,675.72,0.29598058]
[1738222076798,0.27172558,676.8,675.72,0.29598058]
[1738222078402,0.27173157,676.79,675.72,0.29598058]
[1738222078598,0.27173157,676.8,675.72,0.29598058]
[1738222078799,0.2955039,676.81,675.72,0.29598058]
[1738222078800,0.27173157,676.79,675.72,0.29598058]
[1738222079101,1.1007863,676.67,675.72,0.29598058]
[1738222079299,0.27173157,676.66,675.72,0.29598058]
[1738222082198,1.1007863,676.65,675.72,0.29598058]
[1738222082404,0.27173157,676.64,675.72,0.29598058]
[1738222084404,1.1007863,676.65,675.72,0.29598058]
[1738222084902,0.27172295,676.64,675.72,0.29598058]
[1738222086105,0.27172295,676.64,675.73,0.25813194]
[1738222086805,0.27172295,676.64,675.72,0.29598058]
[1738222087605,1.1007863,676.65,675.72,0.29598058]
[1738222087800,0.27172629,676.64,675.72,0.29598058]
[1738222088005,1.1007863,676.63,675.72,0.29598058]
[1738222092009,1.1007863,676.73,675.72,0.29598058]
[1738222095008,0.2955039,676.81,675.72,0.29598058]
[1738222095009,1.1007863,676.79,675.72,0.29598058]
[1738222096610,0.27171116,676.78,675.72,0.29598058]
[1738222097316,1.1007863,676.79,675.72,0.29598058]
[1738222097517,0.27171191,676.78,675.72,0.29598058]
[1738222098212,1.1007863,676.76,675.72,0.29598058]
[1738222098418,0.27171191,676.75,675.73,0.25812119]
[1738222098613,0.27171191,676.75,675.74,0.29597182]
[1738222099018,1.1007863,676.76,675.74,0.29597182]
[1738222099213,0.27170976,676.75,675.74,0.29597182]
[1738222100713,0.27170924,676.74,675.75,0.25811989]
[1738222100915,1.1007863,676.76,675.75,0.55408733]
[1738222100916,0.27170924,676.73,675.75,0.55408733]
[1738222101114,0.27170924,676.75,675.76,0.25811989]
[1738222101320,0.27170924,676.74,675.76,0.25811989]
[1738222101616,0.27170924,676.73,675.75,0.29596744]
[1738222101820,0.27170924,676.72,675.75,0.29596744]
[1738222102022,0.27170924,676.75,675.75,0.29596744]
[1738222102216,0.27170924,676.74,675.75,0.29596744]
[1738222102423,1.1007863,676.65,675.75,0.29596744]
[1738222105517,1.1007863,676.61,675.75,0.29596744]
[1738222108427,0.2955039,676.81,675.75,0.29596744]
[1738222108428,1.1007863,676.59,675.75,0.29596744]
[1738222111630,1.1007863,676.59,675.76,0.25812381]
[1738222113829,1.1007863,676.59,675.75,0.29596744]
[1738222114733,1.1007863,676.58,675.75,1.40213384]
[1738222117634,0.2955039,676.81,675.75,0.29596744]
[1738222117635,1.1007863,676.7,675.75,0.29596744]
[1738222120433,1.1007863,676.69,675.75,0.29596744]
[1738222123338,1.1007863,676.68,675.75,0.29596744]
[1738222123939,0.27171791,676.67,675.75,0.29596744]
[1738222126638,1.1007863,676.54,675.76,1.1061664]
[1738222128341,1.1007863,676.54,675.77,0.25811953]
[1738222128643,1.1007863,676.54,675.78,0.2581168]
[1738222128940,1.1007863,676.54,675.76,1.1061664]
[1738222129143,1.1007863,676.53,675.77,1.36428518]
[1738222129436,1.1007863,676.53,675.78,0.25811685]
[1738222129743,1.1007863,676.53,675.77,1.1061664]
[1738222131639,1.1007863,676.55,675.8,1.1061664]
[1738222137749,1.1007863,676.57,675.78,1.1061664]
[1738222140444,1.1007863,676.58,675.78,1.1061664]
[1738222144349,1.1007863,676.58,675.75,0.29596744]
[1738222144350,0.2955039,676.81,675.75,0.29596744]
[1738222152055,0.27170916,676.8,675.75,0.29596744]
[1738222153752,0.27170916,676.8,675.76,0.25811951]
[1738222154660,1.1007863,676.63,675.76,0.25811951]
[1738222156454,1.1007863,676.63,675.75,0.29596744]
[1738222157161,0.27171872,676.62,675.75,0.29596744]
[1738222157360,1.1007863,676.55,675.78,1.1061664]
[1738222159558,1.1007863,676.53,675.76,1.1061664]
[1738222166466,1.1007863,676.54,675.76,1.1061664]
[1738222168966,1.1007863,676.7,675.75,0.29596744]
[1738222172673,1.1007863,676.74,675.75,0.29596744]
[1738222175672,1.1007863,676.82,675.75,0.29596744]
[1738222178475,2.24743871,677.56,675.75,0.29596744]
[1738222178476,1.1007863,676.94,675.75,0.29596744]
[1738222181678,1.1007863,677.02,675.75,0.29596744]
[1738222184282,1.1007863,677.04,675.75,0.29596744]
[1738222187584,1.1007863,677.08,675.75,0.29596744]
[1738222189882,1.1007863,677.1,675.75,0.29596744]
[1738222190087,0.2953817,677.09,675.75,0.29596744]
[1738222192589,1.1007863,677.03,675.75,0.29596744]
[1738222195994,1.1007863,677.01,675.75,0.29596744]
[1738222199795,0.2953817,677.09,675.75,0.29596744]
[1738222199796,1.1007863,676.96,675.75,0.29596744]
[1738222202089,0.27174371,676.95,675.75,0.29596744]
[1738222202696,1.1007863,676.9,675.75,0.29596744]
[1738222203496,0.2717262,676.89,675.75,0.29596744]
[1738222206193,1.1007863,676.9,675.75,0.29596744]
[1738222206398,0.27172812,676.89,675.75,0.29596744]
[1738222206797,1.1007863,676.84,675.75,0.29596744]
[1738222206993,0.27172812,676.83,675.75,0.29596744]
[1738222209698,0.2717375,676.82,675.75,0.29596744]
[1738222209900,0.2717375,676.83,675.75,0.29596744]
[1738222210103,0.2717375,676.82,675.75,0.29596744]
[1738222210304,1.1007863,676.8,675.75,0.29596744]
[1738222210503,1.1007863,676.62,675.75,0.29596744]
[1738222210702,0.2717375,676.61,675.75,0.29596744]
[1738222214199,1.1007863,676.59,675.75,0.29596744]
[1738222214403,0.2717375,676.58,675.75,0.29596744]
[1738222215106,1.1007863,676.59,675.75,0.29596744]
[1738222216506,0.27173605,676.58,675.75,0.29596744]
[1738222217412,1.37252235,676.58,675.75,0.29596744]
[1738222217706,1.1007863,676.58,675.75,0.29596744]
[1738222220303,0.27173885,676.57,675.75,0.29596744]
[1738222220607,1.1007863,676.58,675.75,0.29596744]
[1738222221307,1.1007863,676.54,675.75,0.29596744]
[1738222224006,8.83662068,682.92,675.75,0.29596744]
[1738222224007,1.1007863,676.55,675.75,0.29596744]
[1738222226916,1.1007863,676.48,675.75,0.29596744]
[1738222229915,1.1007863,676.72,675.75,0.29596744]
[1738222232316,1.1007863,676.81,675.75,0.29596744]
[1738222235017,1.1007863,676.83,675.75,0.29596744]
[1738222236213,0.27177695,676.82,675.75,0.29596744]
[1738222237715,1.1007863,676.83,675.75,0.29596744]
[1738222238620,1.1007863,676.77,675.75,0.29596744]
[1738222240526,0.27176229,676.76,675.75,0.29596744]
[1738222242627,0.27176229,676.75,675.75,0.29596744]
[1738222242826,0.27176229,676.74,675.75,0.29596744]
[1738222243026,0.27176229,676.73,675.75,0.29596744]
[1738222243327,0.27176229,676.72,675.75,0.29596744]
[1738222243526,0.27176229,676.71,675.75,0.29596744]
[1738222243727,0.27176229,676.77,675.75,0.29596744]
[1738222243927,0.27176229,676.76,675.75,0.29596744]
[1738222244226,0.27176229,676.75,675.75,0.29596744]
[1738222244528,0.27176229,676.74,675.75,0.29596744]
[1738222244724,0.27176229,676.73,675.75,0.29596744]
[1738222244927,0.27176229,676.72,675.75,0.29596744]
[1738222245128,0.27176229,676.77,675.75,0.29596744]
[1738222245328,0.27176229,676.76,675.75,0.29596744]
[1738222245530,1.1007863,676.56,675.75,0.29596744]
[1738222245724,0.27176034,676.55,675.75,0.29596744]
[1738222247030,1.1007863,676.56,675.75,0.29596744]
[1738222247925,0.27176846,676.55,675.75,0.29596744]
[1738222248132,1.1007863,676.56,675.75,0.29596744]
[1738222250130,1.1007863,676.52,675.75,0.29596744]
[1738222253239,2.24743871,677.43,675.75,0.29596744]
[1738222253240,1.1007863,676.58,675.75,0.29596744]
[1738222255635,1.1007863,676.59,675.75,0.29596744]
[1738222258739,1.1007863,676.57,675.75,0.29596744]
[1738222261740,0.27178055,676.56,675.75,0.29596744]
[1738222261941,0.56854503,677.03,675.75,0.29596744]
[1738222261942,1.1007863,676.5,675.75,0.29596744]
[1738222264745,1.1007863,676.48,675.75,0.29596744]
[1738222267948,1.1007863,676.57,675.75,0.29596744]
[1738222271354,1.1007863,676.55,675.75,0.29596744]
[1738222274454,1.1007863,676.58,675.75,0.29596744]
[1738222277558,1.1007863,676.52,675.75,0.29596744]
[1738222281357,1.1007863,676.96,675.75,0.29596744]
[1738222283963,0.27171977,676.95,675.75,0.29596744]
[1738222284565,0.27171977,676.96,675.75,0.29596744]
[1738222284766,0.27171977,676.95,675.75,0.29596744]
[1738222285064,0.27171977,676.94,675.75,0.29596744]
[1738222285264,0.27171977,676.96,675.75,0.29596744]
[1738222286262,1.1007863,676.97,675.75,0.29596744]
[1738222286458,0.27171784,676.96,675.75,0.29596744]
[1738222288067,1.1007863,676.81,675.75,0.29596744]
[1738222288266,0.27171182,676.8,675.75,0.29596744]
[1738222290764,0.27171182,676.8,675.76,0.25812392]
[1738222291270,1.1007863,676.81,675.75,0.29596744]
[1738222291471,0.27171276,676.8,675.76,0.25812343]
[1738222291867,0.27171276,676.8,675.75,0.29596744]
[1738222292269,1.1007863,676.7,675.75,0.29596744]
[1738222292569,0.27171276,676.69,675.75,0.29596744]
[1738222292971,0.27171527,676.68,675.75,0.29596744]
[1738222293170,0.27171527,676.69,675.76,0.25812035]
[1738222293465,0.27171527,676.68,675.76,0.25812035]
[1738222293673,0.27171527,676.69,675.76,0.25812035]
[1738222293869,0.27171527,676.68,675.76,0.25812035]
[1738222294069,0.27171527,676.69,675.76,0.25812035]
[1738222294271,0.27171527,676.68,675.76,0.25812035]
[1738222294470,1.1007863,676.7,675.75,0.29596744]
[1738222294671,0.27171352,676.69,675.75,0.29596744]
[1738222296272,0.27171317,676.68,675.75,0.29596744]
[1738222296471,0.27171317,676.67,675.75,0.29596744]
[1738222296672,0.27171317,676.66,675.75,0.29596744]
[1738222296971,1.1007863,676.7,675.75,0.29596744]
[1738222297172,0.27171108,676.69,675.75,0.29596744]
[1738222297776,1.1007863,676.7,675.75,0.29596744]
[1738222297972,0.27171573,676.69,675.75,0.29596744]
[1738222299774,1.1007863,676.7,675.75,0.29596744]
[1738222300575,1.1007863,676.72,675.75,0.29596744]
[1738222300875,0.27171164,676.71,675.75,0.29596744]
[1738222301075,1.1007863,676.72,675.75,0.29596744]
[1738222301274,0.27171509,676.71,675.75,0.29596744]
[1738222302272,1.1007863,676.72,675.75,0.29596744]
[1738222302576,0.27171449,676.71,675.75,0.29596744]
[1738222306580,1.1007863,676.65,675.75,0.29596744]
[1738222307784,0.27174836,676.64,675.75,0.29596744]
[1738222309587,1.1007863,676.65,675.75,0.29596744]
[1738222309782,0.27175477,676.64,675.75,0.29596744]
[1738222310488,1.1007863,676.6,675.75,0.29596744]
[1738222315196,1.1007863,676.64,675.75,0.29596744]
[1738222317890,1.1007863,676.65,675.75,0.29596744]
[1738222320091,1.1007863,676.63,675.75,0.29596744]
[1738222322994,1.1007863,676.67,675.75,0.29596744]
[1738222326195,1.1007863,676.72,675.75,0.29596744]
[1738222329191,1.1007863,676.71,675.75,0.29596744]
[1738222332101,1.1007863,676.76,675.75,0.29596744]
[1738222332299,0.27170842,676.75,675.76,0.25811909]
[1738222332695,0.27170956,676.74,675.75,0.29596744]
[1738222332895,0.27170956,676.75,675.75,0.29596744]
[1738222333099,0.27170956,676.74,675.75,0.29596744]
[1738222333303,0.27170956,676.75,675.75,0.29596744]
[1738222333499,0.27170956,676.74,675.75,0.29596744]
[1738222333699,0.27170956,676.75,675.75,0.29596744]
[1738222333902,0.27170956,676.74,675.75,0.29596744]
[1738222334096,0.27170956,676.75,675.75,0.29596744]
[1738222334296,1.1007863,676.76,675.75,0.29596744]
[1738222334500,0.27171869,676.75,675.75,0.29596744]
[1738222334702,0.27171869,676.75,675.75,0.28135169]
[1738222335606,1.1007863,676.64,675.75,0.28135169]
[1738222338011,0.27172364,676.63,675.75,0.28135169]
[1738222338609,1.1007863,676.61,675.75,0.28135169]
[1738222342613,1.1007863,676.66,675.75,0.28135169]
[1738222345917,0.76276949,677.05,675.75,0.28135169]
[1738222345918,1.1007863,676.72,675.75,0.28135169]
[1738222349114,1.1007863,676.8,675.75,0.28135169]
[1738222351521,1.1007863,676.81,675.75,0.28135169]
[1738222354718,0.2716986,676.8,675.75,0.28135169]
[1738222355217,1.3724849,676.8,675.75,0.28135169]
[1738222355422,0.2716986,676.79,675.75,0.28135169]
[1738222357722,1.1007863,676.8,675.75,0.28135169]
[1738222358126,0.27168489,676.79,675.75,0.28135169]
[1738222358623,0.27168489,676.79,675.76,0.25879161]
[1738222358824,0.27168489,676.79,675.77,0.29595868]
[1738222359120,1.1007863,676.71,675.77,0.29595868]
[1738222362029,1.1007863,676.72,675.77,0.29595868]
[1738222363627,1.1007863,676.72,675.78,0.25878037]
[1738222363826,1.1007863,676.72,675.79,0.29594992]
[1738222364627,1.1007863,676.77,675.79,0.29594992]
[1738222367933,1.1007863,676.74,675.79,0.29594992]
[1738222370434,1.1007863,676.77,675.79,0.29594992]
[1738222372628,0.76265108,677.05,675.79,0.29594992]
[1738222372629,1.1007863,676.8,675.79,0.29594992]
[1738222375534,1.1007863,676.78,675.79,0.29594992]
[1738222379531,0.27167951,676.77,675.79,0.29594992]
[1738222379735,1.1007863,676.78,675.79,0.29594992]
[1738222379940,1.1007863,676.77,675.79,0.29594992]
[1738222382036,1.1007863,676.77,675.8,0.25877962]
[1738222382240,1.1007863,676.77,675.8,0.29594554]
[1738222383142,1.1007863,676.7,675.8,1.40211194]
[1738222384543,1.1007863,676.7,675.81,0.29594116]
[1738222386342,1.1007863,676.79,675.81,0.29594116]
[1738222390743,1.1007863,676.84,675.81,0.29594116]
[1738222393843,1.1007863,676.85,675.81,0.29594116]
[1738222397245,1.1007863,676.8,675.81,0.29594116]
[1738222402148,1.1007863,676.8,675.82,0.25876936]
[1738222402345,1.1007863,676.8,675.83,0.2959324]
[1738222402546,1.1007863,676.8,675.84,0.25876936]
[1738222402746,1.1007863,676.8,675.85,0.29592365]
[1738222403047,1.1007863,676.8,675.86,0.25876936]
[1738222403844,1.1007863,676.74,675.86,0.25876936]
[1738222405248,1.1007863,676.74,675.85,0.29592365]
[1738222407449,0.76289465,677.05,675.85,0.29592365]
[1738222407450,1.1007863,676.84,675.85,0.29592365]
[1738222411152,1.1007863,676.82,675.85,0.29592365]
[1738222414359,1.1007863,676.85,675.85,0.29592365]
[1738222418656,1.1007863,676.8,675.85,0.29592365]
[1738222422958,1.1007863,676.73,675.85,0.29592365]
[1738222426059,1.1007863,676.72,675.85,0.29592365]
[1738222426758,1.1007863,676.72,675.86,0.25876854]
[1738222427857,1.1007863,676.72,675.85,0.29592365]
[1738222428058,1.1007863,676.72,675.86,0.25876717]
[1738222428760,1.1007863,676.66,675.9,1.1061664]
[1738222431462,1.1007863,676.68,675.89,1.1061664]
[1738222434658,1.1007863,676.69,675.89,1.1061664]
[1738222437262,1.1007863,676.74,675.85,0.29592365]
[1738222440965,1.1007863,676.74,675.85,1.40209005]
[1738222443669,1.1007863,676.81,675.85,0.29592365]
[1738222447172,0.29539479,677.06,675.85,0.29592365]
[1738222447173,1.1007863,676.88,675.85,0.29592365]
[1738222450980,0.29539479,677.06,675.85,0.29592365]
[1738222450981,1.1007863,676.9,675.85,0.29592365]
[1738222453583,1.1007863,676.92,675.85,0.29592365]
[1738222456684,1.1007863,676.95,675.85,0.29592365]
[1738222459490,1.1007863,676.96,675.85,0.29592365]
[1738222460789,1.1007863,676.96,675.86,0.25872921]
[1738222460990,1.1007863,676.96,675.87,0.29591489]
[1738222462691,1.1007863,676.94,675.87,0.29591489]
[1738222463190,0.2716209,676.93,675.88,0.25872926]
[1738222463390,0.2716209,676.93,675.89,0.29590613]
[1738222463593,0.2716209,676.93,675.9,0.25872926]
[1738222463783,0.2716209,676.93,675.91,0.29589738]
[1738222463991,0.2716209,676.93,675.92,0.25872926]
[1738222464388,0.2716209,676.93,675.93,0.29588862]
[1738222465889,1.1007863,676.94,675.93,0.29588862]
[1738222466288,0.27161705,676.93,675.93,0.29588862]
[1738222466595,1.1007863,676.83,675.93,0.29588862]
[1738222470195,0.29539479,677.06,675.93,0.29588862]
[1738222470196,1.1007863,676.9,675.93,0.29588862]
[1738222473697,1.1007863,677.04,675.93,0.29588862]
[1738222476803,1.1007863,677.03,675.93,0.29588862]
[1738222482604,0.76294688,677.64,675.93,0.29588862]
[1738222482605,1.1007863,677.06,675.93,0.29588862]
[1738222482805,1.1007863,677.06,675.94,0.25869301]
[1738222483205,1.1007863,677.06,675.93,0.29588862]
[1738222483405,1.1007863,677.06,675.94,0.25868404]